bitfinex/quotes_SOLUSD_20260308
["timestamp","ask_amount","ask_price","bid_price","bid_amount"]
[1772994029944,0.2,81.57,81.529,0.45074914]
[1772994030146,0.2,81.57,81.531,0.45074914]
[1772994030866,0.46758184,81.568,81.533,0.45074914]
[1772994032570,0.46758184,81.559,81.521,12.26677788]
[1772994032870,4.82810481,81.56,81.521,42.93372259]
[1772994032871,0.30748576,81.557,81.521,42.93372259]
[1772994033249,0.30748576,81.557,81.523,0.47921092]
[1772994034070,0.30748576,81.567,81.523,0.47921092]
[1772994034962,0.30748576,81.567,81.524,42.93214268]
[1772994035264,0.30748576,81.567,81.526,0.47921092]
[1772994035449,0.2,81.57,81.526,0.47921092]
[1772994035644,0.50748576,81.57,81.526,0.47921092]
[1772994035849,0.2,81.57,81.526,0.47921092]
[1772994036450,0.30748576,81.569,81.526,0.47921092]
[1772994037473,0.30748576,81.569,81.529,0.47921092]
[1772994039870,0.30748576,81.567,81.532,0.47921092]
[1772994043373,0.30748576,81.567,81.535,0.47921092]
[1772994045674,0.30748576,81.567,81.538,0.47921092]
[1772994045880,0.30748576,81.565,81.525,0.47921092]
[1772994046064,0.30748576,81.565,81.526,12.26602556]
[1772994046260,0.30748576,81.565,81.526,42.93108946]
[1772994046461,0.30748576,81.565,81.526,43.41030038]
[1772994047179,0.30748576,81.565,81.527,0.47921092]
[1772994048883,0.30748576,81.563,81.529,0.47921092]
[1772994049580,0.30748576,81.569,81.53,0.47921092]
[1772994050766,0.30748576,81.569,81.529,0.28432314]
[1772994050767,0.30748576,81.569,81.532,0.47921092]
[1772994052871,0.30748576,81.567,81.534,0.47921092]
[1772994054871,0.30748576,81.567,81.536,0.47921092]
[1772994055267,0.30748576,81.567,81.537,0.47921092]
[1772994058385,0.2,81.57,81.54,0.47921092]
[1772994058569,0.2,81.58,81.541,0.47921092]
[1772994058882,0.30748576,81.579,81.541,0.47921092]
[1772994060467,0.2,81.58,81.543,0.47921092]
[1772994060669,0.2,81.59,81.544,0.47921092]
[1772994060872,0.2,81.6,81.547,0.5]
[1772994061074,0.2,81.61,81.547,0.5]
[1772994061278,1e-08,81.62,81.562,5.32477569]
[1772994061579,4.81074574,81.62,81.566,0.5]
[1772994061969,1e-08,81.62,81.566,0.5]
[1772994062362,1e-08,81.62,81.56,1.51041436]
[1772994062363,1e-08,81.62,81.569,0.5]
[1772994064894,1e-08,81.62,81.572,0.5]
[1772994065186,1e-08,81.62,81.571,0.28432314]
[1772994065187,1e-08,81.62,81.575,0.5]
[1772994065486,0.2,81.63,81.575,0.5]
[1772994065666,0.2,81.63,81.577,0.5]
[1772994065863,0.2,81.63,81.576,0.28432314]
[1772994065864,0.2,81.65,81.585,3.69383402]
[1772994066187,0.2,81.65,81.584,0.5]
[1772994066778,0.2,81.65,81.591,0.5]
[1772994067079,1e-08,81.65,81.596,0.5]
[1772994067276,1e-08,81.65,81.597,0.5]
[1772994068877,1e-08,81.65,81.602,0.5]
[1772994069077,1e-08,81.65,81.603,0.5]
[1772994071194,1e-08,81.65,81.606,0.5]
[1772994071589,4.81074573,81.64,81.604,12.05430123]
[1772994071800,4.81074573,81.62,81.563,0.5]
[1772994072090,4.81074573,81.63,81.564,0.5]
[1772994072294,4.81074573,81.63,81.567,0.5]
[1772994072890,4.81074573,81.62,81.567,0.5]
[1772994073292,12.25204915,81.619,81.57,0.5]
[1772994073505,4.81074573,81.61,81.568,12.25970969]
[1772994073994,42.88217203,81.619,81.568,12.25970969]
[1772994074195,4.81074573,81.61,81.568,12.25970969]
[1772994074394,4.81074573,81.61,81.568,43.40898391]
[1772994075504,12.25355046,81.609,81.568,43.40898391]
[1772994075704,4.81074573,81.6,81.568,12.75970969]
[1772994075903,4.81074573,81.6,81.568,12.25970969]
[1772994076200,42.88742662,81.609,81.568,12.25970969]
[1772994076606,42.88742662,81.609,81.568,12.75970969]
[1772994077601,12.25219926,81.618,81.57,0.5]
[1772994078798,12.25219926,81.618,81.571,42.90740581]
[1772994079006,12.25219926,81.618,81.572,0.5]
[1772994079393,12.25219926,81.618,81.573,0.5]
[1772994080910,12.25219926,81.618,81.576,0.5]
[1772994083017,4.81074573,81.61,81.578,0.5]
[1772994084512,12.25355046,81.609,81.579,12.2580566]
[1772994085011,12.25355046,81.609,81.58,0.5]
[1772994087712,4.81074573,81.6,81.581,12.25775609]
[1772994087893,4.81074573,81.6,81.564,12.26031092]
[1772994088095,12.25355046,81.609,81.566,0.5]
[1772994089513,12.25355046,81.609,81.568,0.28432314]
[1772994089818,12.25355046,81.609,81.568,0.5]
[1772994089819,4.81074573,81.6,81.568,0.5]
[1772994091302,42.88742662,81.609,81.568,0.28432314]
[1772994091507,42.88742662,81.609,81.569,0.5]
[1772994091817,42.88742662,81.609,81.572,0.5]
[1772994092223,42.88742662,81.609,81.57,12.25940909]
[1772994092224,4.81074573,81.6,81.57,12.25940909]
[1772994093920,12.25370061,81.608,81.57,0.5]
[1772994095123,4.81074573,81.6,81.57,0.5]
[1772994096426,4.81074573,81.6,81.558,30.65297855]
[1772994096427,42.8926825,81.599,81.56,0.5]
[1772994096619,42.8926825,81.599,81.562,0.5]
[1772994096801,4.81074573,81.59,81.56,12.26091221]
[1772994098017,12.25505214,81.599,81.562,0.5]
[1772994098221,4.81074573,81.62,81.562,0.5]
[1772994098425,4.81074573,81.62,81.561,0.28432314]
[1772994098426,30.63063057,81.618,81.565,0.5]
[1772994099523,30.63063057,81.618,81.568,0.5]
[1772994102827,12.25234938,81.617,81.571,0.5]
[1772994105137,12.25234938,81.617,81.574,0.5]
[1772994108135,12.25234938,81.617,81.577,0.5]
[1772994110654,12.25234938,81.617,81.58,0.5]
[1772994111960,12.25234938,81.617,81.582,0.5]
[1772994112925,12.25234938,81.617,81.573,0.5]
[1772994112926,4.81074573,81.61,81.573,0.5]
[1772994113550,4.80747198,81.61,81.573,0.5]
[1772994113953,12.25355046,81.609,81.575,0.5]
[1772994115830,12.25355046,81.609,81.576,12.7585074]
[1772994116658,12.25355046,81.609,81.577,0.5]
[1772994118532,12.25355046,81.609,81.579,0.5]
[1772994118930,3.69383402,81.635,81.579,0.5]
[1772994119253,42.87219186,81.638,81.58,0.5]
[1772994119453,12.24858372,81.643,81.583,0.5]
[1772994119758,12.24790112,81.647,81.583,0.5]
[1772994120147,4.80747198,81.64,81.583,0.5]
[1772994120759,42.87166672,81.639,81.586,0.5]
[1772994121956,42.87166672,81.639,81.589,0.5]
[1772994124565,1e-08,81.65,81.591,0.5]
[1772994124748,4.80747199,81.65,81.592,0.5]
[1772994125855,4.80747198,81.64,81.595,0.5]
[1772994127156,4.80747199,81.65,81.598,0.5]
[1772994127363,4.80747198,81.64,81.598,0.5]
[1772994127655,4.80747199,81.65,81.598,0.5]
[1772994128962,4.80747198,81.64,81.598,0.5]
[1772994129445,4.80747198,81.64,81.601,0.5]
[1772994129446,12.24904763,81.639,81.601,0.5]
[1772994131964,4.80747198,81.64,81.603,0.5]
[1772994133159,12.24904763,81.639,81.604,12.25430125]
[1772994133360,12.24904763,81.639,81.605,0.5]
[1772994135246,12.24904763,81.639,81.604,42.89005439]
[1772994135247,42.87166672,81.639,81.607,0.5]
[1772994136569,42.87166672,81.639,81.584,0.5]
[1772994136570,4.80747198,81.62,81.584,0.5]
[1772994136748,4.80747198,81.63,81.584,0.5]
[1772994137250,42.87166672,81.639,81.584,0.5]
[1772994137552,42.87166672,81.639,81.564,3.69383402]
[1772994137553,4.80747198,81.64,81.586,0.28432314]
[1772994137762,4.80747198,81.64,81.587,0.5]
[1772994139063,4.80747198,81.63,81.587,0.5]
[1772994140254,12.25054821,81.629,81.589,0.78432314]
[1772994140573,42.87691874,81.629,81.59,0.5]
[1772994142670,42.87691874,81.629,81.592,0.5]
[1772994142970,4.80747198,81.62,81.592,0.5]
[1772994144756,4.80747198,81.63,81.594,0.5]
[1772994145256,4.80747198,81.64,81.594,0.5]
[1772994149578,12.24904763,81.639,81.596,0.5]
[1772994149780,12.24904763,81.639,81.597,0.5]
[1772994153285,12.24904763,81.639,81.6,0.5]
[1772994156785,4.80747198,81.63,81.587,0.5]
[1772994156969,4.80747198,81.62,81.587,0.5]
[1772994158079,12.25204915,81.619,81.589,0.5]
[1772994162794,12.25204915,81.619,81.591,0.5]
[1772994165705,12.25204915,81.619,81.593,0.5]
[1772994169104,12.25204915,81.619,81.563,104.9]
[1772994169105,42.88217203,81.619,81.566,0.5]
[1772994169279,4.80747198,81.59,81.566,0.5]
[1772994170501,12.25655419,81.589,81.56,0.5]
[1772994172009,4.80747198,81.58,81.56,0.5]
[1772994172708,12.2580566,81.579,81.56,0.5]
[1772994173895,42.89793967,81.589,81.56,0.5]
[1772994175707,4.81025673,81.59,81.56,0.5]
[1772994177712,12.25655419,81.589,81.561,0.5]
[1772994178814,12.25655419,81.589,81.563,0.5]
[1772994179512,42.89793967,81.589,81.553,0.5]
[1772994180515,4.81025673,81.58,81.555,0.5]
[1772994180936,0.28432314,81.607,81.557,0.5]
[1772994181101,4.81025673,81.59,81.557,0.5]
[1772994181724,4.81025673,81.58,81.545,0.5]
[1772994184310,12.2580566,81.579,81.547,0.5]
[1772994185128,4.81025673,81.57,81.542,12.76359266]
[1772994185312,4.81025673,81.57,81.543,0.5]
[1772994185633,12.2580566,81.579,81.543,0.5]
[1772994185842,4.81025673,81.6,81.544,0.5]
[1772994186507,12.25505214,81.599,81.547,0.5]
[1772994186833,12.25355046,81.609,81.547,0.5]
[1772994188015,12.25355046,81.609,81.55,0.5]
[1772994191621,12.25355046,81.609,81.553,0.5]
[1772994192539,12.25355046,81.609,81.554,42.91634989]
[1772994192852,12.25355046,81.609,81.556,0.5]
[1772994193414,4.81025673,81.6,81.556,0.5]
[1772994196522,12.25505214,81.599,81.558,0.28432314]
[1772994196722,12.25505214,81.599,81.559,0.5]
[1772994198648,42.88742662,81.609,81.561,0.28432314]
[1772994198843,42.88742662,81.609,81.562,0.5]
[1772994199327,12.25355046,81.609,81.562,0.5]
[1772994201650,12.25355046,81.609,81.564,0.5]
[1772994204751,12.25355046,81.609,81.566,0.5]
[1772994206340,42.88742662,81.609,81.566,0.5]
[1772994206648,4.81025673,81.6,81.568,0.5]
[1772994210033,0.28432314,81.629,81.568,0.5]
[1772994210034,30.63050462,81.618,81.57,0.5]
[1772994210237,42.6,81.638,81.57,0.5]
[1772994210238,4.81025673,81.62,81.571,0.5]
[1772994210456,4.81025673,81.63,81.571,0.5]
[1772994211356,42.87691874,81.629,81.572,42.9068798]
[1772994211556,42.87691874,81.629,81.573,0.5]
[1772994211974,4.81025673,81.62,81.573,0.5]
[1772994213759,12.25204915,81.619,81.576,0.5]
[1772994215176,12.25204915,81.619,81.579,0.5]
[1772994220163,12.25204915,81.619,81.581,0.78432314]
[1772994220461,12.25204915,81.619,81.582,0.5]
[1772994221878,12.25204915,81.619,81.584,0.5]
[1772994222883,12.25204915,81.619,81.586,0.5]
[1772994225678,12.25204915,81.619,81.588,0.5]
[1772994232493,30.62974202,81.621,81.59,0.5]
[1772994234675,30.62974202,81.621,81.591,12.25625375]
[1772994234880,30.62974202,81.621,81.592,0.5]
[1772994237799,30.62974202,81.621,81.594,0.5]
[1772994238209,12.25054821,81.629,81.594,0.5]
[1772994238512,42.87691874,81.629,81.594,0.5]
[1772994240689,12.2499571,81.633,81.596,0.5]
[1772994241408,1e-08,81.65,81.597,0.5]
[1772994241786,12.24754742,81.649,81.597,0.5]
[1772994242392,1e-08,81.65,81.597,0.5]
[1772994242693,1e-08,81.65,81.598,42.89320816]
[1772994242896,1e-08,81.65,81.6,0.5]
[1772994246504,1e-08,81.65,81.603,0.5]
[1772994246897,1e-08,81.65,81.602,0.28432314]
[1772994246898,1e-08,81.65,81.606,0.5]
[1772994250298,1e-08,81.65,81.609,0.5]
[1772994252415,1e-08,81.65,81.612,0.5]
[1772994255785,1e-08,81.65,81.615,0.5]
[1772994260320,1e-08,81.65,81.618,0.5]
[1772994261417,0.2,81.66,81.619,0.5]
[1772994262393,0.2,81.66,81.622,0.5]
[1772994264896,0.2,81.66,81.625,0.5]
[1772994265093,12.24604758,81.659,81.625,0.5]
[1772994266420,0.2,81.66,81.625,0.5]
[1772994267409,12.24604758,81.659,81.628,0.5]
[1772994270324,0.2,81.66,81.631,0.5]
[1772994273018,0.2,81.66,81.633,0.5]
[1772994275129,0.2,81.67,81.637,0.5]
[1772994276722,0.2,81.67,81.64,0.5]
[1772994278331,0.2,81.67,81.642,0.5]
[1772994280516,0.2,81.67,81.645,0.5]
[1772994280719,0.1,81.68,81.645,0.5]
[1772994281935,0.1,81.68,81.648,0.5]
[1772994283036,0.1,81.68,81.651,0.5]
[1772994284637,0.1,81.68,81.653,0.5]
[1772994286115,0.1,81.68,81.655,0.5]
[1772994288838,0.1,81.68,81.657,0.5]
[1772994290726,0.1,81.68,81.643,0.28432314]
[1772994290727,0.1,81.68,81.659,0.5]
[1772994291039,0.1,81.69,81.66,0.5]
[1772994292242,0.1,81.69,81.661,12.24574766]
[1772994292536,0.1,81.69,81.662,0.5]
[1772994292729,0.1,81.7,81.663,0.5]
[1772994294744,0.1,81.7,81.666,0.5]
[1772994295539,0.1,81.71,81.666,0.5]
[1772994296649,0.1,81.71,81.669,0.5]
[1772994298351,0.1,81.71,81.672,0.5]
[1772994299753,0.1,81.71,81.65,61.23657063]
[1772994299754,0.1,81.71,81.675,0.5]
[1772994301753,0.1,81.71,81.678,0.5]
[1772994303860,0.1,81.71,81.681,0.5]
[1772994304238,0.1,81.72,81.681,0.5]
[1772994305951,0.1,81.72,81.683,0.5]
[1772994307659,0.1,81.72,81.686,0.5]
[1772994309156,0.2,81.73,81.686,0.5]
[1772994309552,0.2,81.73,81.689,0.5]
[1772994313366,0.2,81.73,81.692,0.5]
[1772994315663,0.2,81.73,81.695,0.5]
[1772994316170,12.23555898,81.729,81.693,12.24095087]
[1772994316374,12.23555898,81.729,81.695,0.5]
[1772994316666,0.2,81.73,81.695,0.5]
[1772994316864,12.43551356,81.73,81.695,0.5]
[1772994317773,12.43551356,81.73,81.698,0.5]
[1772994318867,0.2,81.73,81.701,0.5]
[1772994320074,12.43544102,81.73,81.701,0.5]
[1772994321662,47.81721529,81.73,81.681,0.5]
[1772994321977,4.79325109,81.72,81.681,0.5]
[1772994323461,4.79325109,81.72,81.672,0.5]
[1772994324074,42.82969688,81.719,81.674,0.5]
[1772994332762,42.82445643,81.729,81.677,0.5]
[1772994335885,42.82445643,81.729,81.676,0.28432314]
[1772994335886,42.82445643,81.729,81.68,0.5]
[1772994337168,4.79325109,81.72,81.68,0.5]
[1772994337979,42.82969688,81.719,81.682,0.5]
[1772994342900,42.82969688,81.719,81.684,0.5]
[1772994345883,42.82969688,81.719,81.685,12.24214972]
[1772994346489,42.82969688,81.719,81.653,61.23433731]
[1772994346490,4.79325109,81.7,81.664,12.2452978]
[1772994346680,4.79325109,81.7,81.664,12.7452978]
[1772994346881,4.79325109,81.7,81.665,0.5]
[1772994347997,12.24005189,81.699,81.667,0.5]
[1772994351799,12.24005189,81.699,81.669,0.5]
[1772994352703,42.84018163,81.699,81.669,0.5]
[1772994353205,42.84018163,81.699,81.653,0.5]
[1772994354796,42.84018163,81.699,81.655,0.5]
[1772994355302,4.79325109,81.69,81.655,0.5]
[1772994355485,42.6,81.698,81.655,0.5]
[1772994356384,42.6,81.698,81.656,0.5]
[1772994357388,42.6,81.698,81.659,0.5]
[1772994360511,42.6,81.698,81.662,0.5]
[1772994360718,12.23814671,81.712,81.662,0.5]
[1772994361009,12.23755113,81.716,81.662,0.5]
[1772994361594,0.2,81.73,81.665,0.5]
[1772994362101,12.23555898,81.729,81.665,0.5]
[1772994363713,0.2,81.73,81.671,0.5]
[1772994366806,0.2,81.73,81.676,0.5]
[1772994367201,0.2,81.73,81.677,0.5]
[1772994367718,12.23555898,81.729,81.677,0.5]
[1772994369815,12.23555898,81.729,81.679,0.28432314]
[1772994370021,12.23555898,81.729,81.68,0.5]
[1772994372817,12.23555898,81.729,81.683,0.5]
[1772994374120,4.99570958,81.73,81.683,0.5]
[1772994374306,12.23555898,81.729,81.683,0.5]
[1772994377119,12.23555898,81.729,81.686,0.5]
[1772994381826,12.23555898,81.729,81.689,0.5]
[1772994384830,12.23555898,81.729,81.692,0.5]
[1772994386418,4.79570958,81.72,81.686,12.24196172]
[1772994386912,12.23705625,81.719,81.687,0.5]
[1772994387910,12.23570869,81.728,81.687,0.5]
[1772994388312,4.99570958,81.73,81.687,0.5]
[1772994388531,0.2,81.73,81.687,0.5]
[1772994389513,0.2,81.73,81.69,0.5]
[1772994390939,0.2,81.73,81.693,0.5]
[1772994392140,0.2,81.74,81.693,0.5]
[1772994392939,0.2,81.74,81.696,0.5]
[1772994393334,0.2,81.74,81.694,42.84280362]
[1772994393335,0.2,81.74,81.699,0.5]
[1772994396048,0.2,81.74,81.702,0.5]
[1772994398144,0.2,81.74,81.705,0.5]
[1772994401445,0.2,81.74,81.708,0.5]
[1772994403451,0.2,81.74,81.711,0.5]
[1772994404837,0.2,81.74,81.713,0.5]
[1772994406642,0.2,81.74,81.715,0.5]
[1772994407042,0.2,81.75,81.717,0.5]
[1772994409753,12.23256553,81.749,81.718,12.237206]
[1772994411747,12.23256553,81.749,81.718,0.5]
[1772994414258,0.2,81.75,81.72,0.5]
[1772994414564,12.43253142,81.75,81.72,0.5]
[1772994416548,12.43253142,81.75,81.721,12.23675676]
[1772994417160,12.43253142,81.75,81.722,0.5]
[1772994418765,0.2,81.75,81.724,0.5]
[1772994420068,0.2,81.75,81.726,0.5]
[1772994420253,12.43254311,81.75,81.726,0.5]
[1772994420654,0.2,81.75,81.726,0.5]
[1772994422267,0.2,81.764,81.729,0.45454776]
[1772994425772,0.2,81.768,81.732,0.46710208]
[1772994427367,12.22987268,81.767,81.735,0.46710208]
[1772994427673,0.2,81.766,81.735,0.46710208]
[1772994429267,0.2,81.764,81.725,0.46710208]
[1772994429455,0.2,81.759,81.723,30.59111442]
[1772994429655,0.2,81.759,81.724,0.46710208]
[1772994429860,0.2,81.759,81.725,0.46710208]
[1772994431158,0.2,81.759,81.728,0.46710208]
[1772994431456,0.2,81.764,81.728,0.46710208]
[1772994432857,0.2,81.762,81.731,0.46710208]
[1772994435481,0.2,81.762,81.733,0.46710208]
[1772994435678,0.2,81.759,81.728,12.23566946]
[1772994435979,0.2,81.759,81.729,0.46710208]
[1772994436883,0.2,81.759,81.731,0.46710208]
[1772994437458,12.23121896,81.758,81.731,0.46710208]
[1772994437664,0.2,81.757,81.732,0.46710208]
[1772994439379,0.2,81.757,81.734,0.46710208]
[1772994441784,0.2,81.757,81.736,0.46710208]
[1772994444981,0.2,81.757,81.737,12.23436142]
[1772994445182,0.2,81.757,81.738,0.46710208]
[1772994447877,0.2,81.757,81.739,12.23406207]
[1772994448498,0.2,81.757,81.729,12.23555898]
[1772994448699,0.2,81.757,81.708,104.9]
[1772994448700,0.2,81.749,81.696,0.46710208]
[1772994448990,0.2,81.749,81.697,0.46710208]
[1772994451906,0.2,81.747,81.7,0.46710208]
[1772994454506,0.2,81.745,81.703,0.47330268]
[1772994456508,0.2,81.745,81.706,0.47330268]
[1772994459699,0.2,81.745,81.709,0.47330268]
[1772994462131,0.2,81.745,81.712,0.47330268]
[1772994462442,0.2,81.743,81.712,0.47330268]
[1772994463822,0.2,81.743,81.711,0.28432314]
[1772994463823,0.2,81.743,81.71,12.23840411]
[1772994464020,0.2,81.739,81.71,12.23840411]
[1772994464320,0.2,81.737,81.705,0.47330268]
[1772994466234,0.2,81.735,81.706,12.71230593]
[1772994468408,12.23481048,81.734,81.706,12.71230593]
[1772994468714,0.2,81.733,81.707,0.47330268]
[1772994469826,0.2,81.733,81.708,12.23870367]
[1772994471031,0.2,81.733,81.708,12.71200635]
[1772994472823,0.2,81.733,81.709,0.47330268]
[1772994474616,0.2,81.733,81.711,0.47330268]
[1772994477818,0.2,81.733,81.712,12.23810456]
[1772994478137,0.2,81.733,81.713,0.47330268]
[1772994479528,0.2,81.733,81.715,0.47330268]
[1772994481636,0.4,81.764,81.716,0.47330268]
[1772994484729,0.4,81.762,81.719,0.47800938]
[1772994486836,12.23077017,81.761,81.72,42.82917278]
[1772994487044,0.4,81.76,81.722,0.48419673]
[1772994489844,12.23106936,81.759,81.723,12.2364573]
[1772994490050,0.4,81.758,81.724,0.48419673]
[1772994491839,12.63136856,81.757,81.726,0.48419673]
[1772994492746,12.23136856,81.757,81.726,0.48419673]
[1772994493055,0.4,81.756,81.726,0.48419673]
[1772994495954,0.4,81.749,81.718,0.48419673]
[1772994496362,0.4,81.754,81.718,0.48419673]
[1772994498959,0.4,81.752,81.721,0.48419673]
[1772994500463,0.4,81.749,81.715,12.72181206]
[1772994500647,0.4,81.739,81.715,12.23761533]
[1772994501049,0.4,81.738,81.715,12.23761533]
[1772994501551,0.4,81.738,81.713,0.48419673]
[1772994502765,0.4,81.738,81.691,104.9]
[1772994502766,0.4,81.719,81.692,0.48419673]
[1772994503265,0.4,81.719,81.693,0.48419673]
[1772994503964,0.4,81.717,81.692,12.24110071]
[1772994504745,0.4,81.717,81.693,0.48419673]
[1772994505567,0.4,81.717,81.673,0.28432314]
[1772994505568,0.4,81.734,81.696,0.48419673]
[1772994505965,0.4,81.729,81.696,0.48419673]
[1772994507571,0.4,81.727,81.698,0.48419673]
[1772994508868,0.4,81.725,81.7,0.48419673]
[1772994509888,0.4,81.725,81.702,0.48419673]
[1772994511373,12.23630757,81.724,81.702,0.48419673]
[1772994511570,0.4,81.723,81.702,0.48419673]
[1772994514671,0.4,81.723,81.694,30.60200259]
[1772994514672,0.4,81.723,81.704,0.47994889]
[1772994516988,0.4,81.721,81.704,0.47994889]
[1772994517890,0.4,81.721,81.7,0.47994889]
[1772994518093,0.4,81.719,81.7,0.47994889]
[1772994523892,0.4,81.719,81.699,12.23995391]
[1772994523893,0.4,81.717,81.694,0.47994889]
[1772994524189,12.237206,81.718,81.688,0.47994889]
[1772994524190,0.4,81.709,81.688,0.47994889]
[1772994524397,0.4,81.709,81.687,12.24180141]
[1772994525494,0.4,81.709,81.688,0.47994889]
[1772994525993,0.4,81.709,81.673,0.28432314]
[1772994525994,0.4,81.709,81.69,0.47994889]
[1772994526293,0.4,81.707,81.69,0.47994889]
[1772994528894,0.4,81.699,81.674,0.47994889]
[1772994529398,0.4,81.699,81.656,0.47994889]
[1772994529994,0.4,81.697,81.659,0.47994889]
[1772994532086,0.4,81.689,81.662,0.47994889]
[1772994534480,0.4,81.689,81.664,0.47994889]
[1772994535596,12.24142008,81.69,81.664,0.47994889]
[1772994535987,0.4,81.689,81.664,0.47994889]
[1772994537987,0.4,81.689,81.666,0.47994889]
[1772994539093,0.4,81.689,81.668,0.47994889]
[1772994540203,0.4,81.689,81.67,0.47994889]
[1772994540988,0.4,81.693,81.67,0.47994889]
[1772994541188,4.79726687,81.7,81.67,0.47994889]
[1772994541189,0.4,81.697,81.67,0.47994889]
[1772994541597,12.24005189,81.699,81.67,0.47994889]
[1772994541906,12.23951439,81.703,81.67,0.47994889]
[1772994542109,12.23951439,81.703,81.671,12.24424826]
[1772994542310,12.63951439,81.703,81.672,0.47994889]
[1772994542498,0.4,81.702,81.672,0.47994889]
[1772994543907,0.4,81.702,81.673,12.24394842]
[1772994544099,0.4,81.702,81.674,0.47152357]
[1772994544412,0.4,81.7,81.674,0.47152357]
[1772994546010,0.4,81.698,81.67,0.45635173]
[1772994548791,0.4,81.696,81.672,0.45635173]
[1772994549494,0.4,81.689,81.664,12.24524361]
[1772994549695,0.4,81.689,81.665,0.45635173]
[1772994550904,0.4,81.687,81.665,0.45635173]
[1772994552411,0.4,81.687,81.658,0.45635173]
[1772994552719,0.4,81.679,81.653,0.45635173]
[1772994552923,0.4,81.669,81.653,0.45635173]
[1772994553305,0.4,81.669,81.654,0.45635173]
[1772994553504,12.2431989,81.678,81.654,0.45635173]
[1772994553906,12.64270414,81.682,81.654,0.45635173]
[1772994554119,0.4,81.689,81.654,0.45635173]
[1772994556005,0.4,81.687,81.656,0.45635173]
[1772994559105,0.4,81.687,81.658,0.45635173]
[1772994559316,12.64191636,81.687,81.658,0.45635173]
[1772994559928,0.4,81.686,81.658,0.45635173]
[1772994562030,12.24214972,81.685,81.66,0.45635173]
[1772994564726,0.4,81.685,81.661,12.24574766]
[1772994564928,0.4,81.685,81.662,0.45635173]
[1772994566616,0.4,81.683,81.664,0.45635173]
[1772994569010,0.4,81.681,81.664,0.45635173]
[1772994570723,12.24259934,81.682,81.664,0.45635173]
[1772994570928,12.64259934,81.682,81.664,0.45635173]
[1772994574219,0.4,81.681,81.664,0.45635173]
[1772994576123,0.4,81.679,81.664,0.45635173]
[1772994576639,0.4,81.679,81.659,12.24592873]
[1772994576640,0.4,81.679,81.66,0.462809]
[1772994582432,0.4,81.689,81.661,0.462809]
[1772994583954,0.4,81.688,81.663,0.462809]
[1772994586152,0.4,81.686,81.663,0.462809]
[1772994589030,0.4,81.684,81.663,0.462809]
[1772994589247,0.4,81.684,81.665,0.462809]
[1772994591755,0.4,81.688,81.665,0.462809]
[1772994592933,0.4,81.686,81.665,0.462809]
[1772994597050,0.4,81.686,81.649,0.14216157]
[1772994597051,0.4,81.693,81.667,0.462809]
[1772994597362,12.24069746,81.695,81.667,0.462809]
[1772994597751,0.4,81.694,81.667,0.462809]
[1772994599055,0.4,81.689,81.667,0.462809]
[1772994599452,0.4,81.689,81.65,0.462809]
[1772994600246,0.4,81.679,81.651,0.462809]
[1772994601068,42.85119615,81.678,81.651,0.462809]
[1772994601245,0.4,81.669,81.637,0.462809]
[1772994601549,0.4,81.669,81.641,0.462809]
[1772994603167,0.4,81.673,81.642,0.4645344]
[1772994603365,0.4,81.68,81.643,0.4645344]
[1772994603554,12.243049,81.679,81.643,0.4645344]
[1772994603868,12.643049,81.679,81.643,0.4645344]
[1772994604969,12.643049,81.679,81.645,0.4645344]